[Event "Live Chess"]
[Site "Chess.com"]
[Date "2023.05.20"]
[Round "-"]
[White "Tushinskiy"]
[Black "hturner40"]
[Result "1-0"]
[WhiteElo "2107"]
[BlackElo "1769"]
[TimeControl "300"]
[EndTime "12:56:35 PDT"]
[Termination "Tushinskiy won on time"]

1. d4 {[%clk 0:04:58.4]} 1... Nf6 {[%clk 0:04:58]} 2. c3 {[%clk 0:04:58.3]} 2...
Nc6 {[%clk 0:04:56.5]} 3. Nf3 {[%clk 0:04:58.2]} 3... d6 {[%clk 0:04:54.4]} 4.
Bf4 {[%clk 0:04:56.4]} 4... Bg4 {[%clk 0:04:52.7]} 5. Nbd2 {[%clk 0:04:54.9]}
5... g6 {[%clk 0:04:44.6]} 6. Bg3 {[%clk 0:04:51.9]} 6... Bg7 {[%clk 0:04:42.3]}
7. e4 {[%clk 0:04:48.4]} 7... O-O {[%clk 0:04:37.9]} 8. Bd3 {[%clk 0:04:46.2]}
8... e5 {[%clk 0:04:34.4]} 9. d5 {[%clk 0:04:44.1]} 9... Nb8 {[%clk 0:04:32.8]}
10. h3 {[%clk 0:04:43.1]} 10... Bc8 {[%clk 0:04:28.3]} 11. Bh4 {[%clk
0:04:41.7]} 11... Qd7 {[%clk 0:04:21.7]} 12. g4 {[%clk 0:04:40.5]} 12... Ne8
{[%clk 0:04:20.2]} 13. Qe2 {[%clk 0:04:37.5]} 13... Na6 {[%clk 0:04:14]} 14. Bg3
{[%clk 0:04:33.8]} 14... Nc5 {[%clk 0:04:11.5]} 15. Bc2 {[%clk 0:04:32.8]} 15...
a5 {[%clk 0:04:08.8]} 16. Nb3 {[%clk 0:04:29.9]} 16... b6 {[%clk 0:03:50.5]} 17.
Nxc5 {[%clk 0:04:26.8]} 17... bxc5 {[%clk 0:03:47.6]} 18. O-O {[%clk 0:04:20.6]}
18... Ba6 {[%clk 0:03:44.4]} 19. c4 {[%clk 0:04:19]} 19... Rb8 {[%clk
0:03:41.3]} 20. b3 {[%clk 0:04:17.8]} 20... a4 {[%clk 0:03:25.6]} 21. bxa4
{[%clk 0:04:14.1]} 21... Rb2 {[%clk 0:03:24.1]} 22. Rfb1 {[%clk 0:04:13.4]}
22... Rxb1+ {[%clk 0:03:11.5]} 23. Rxb1 {[%clk 0:04:13.3]} 23... h5 {[%clk
0:02:46.1]} 24. gxh5 {[%clk 0:04:11.3]} 24... Qxh3 {[%clk 0:02:43.3]} 25. Bd3
{[%clk 0:04:00.2]} 25... gxh5 {[%clk 0:02:23.6]} 26. Rb8 {[%clk 0:03:52.9]}
26... Nf6 {[%clk 0:02:19.7]} 27. Rxf8+ {[%clk 0:03:50.9]} 27... Bxf8 {[%clk
0:02:18.6]} 28. Ng5 {[%clk 0:03:43]} 28... Qd7 {[%clk 0:02:12.4]} 29. Kg2 {[%clk
0:03:38.5]} 29... Qxa4 {[%clk 0:02:06.8]} 30. f4 {[%clk 0:03:36.2]} 30... Ng4
{[%clk 0:01:41.1]} 31. fxe5 {[%clk 0:03:33.2]} 31... dxe5 {[%clk 0:01:39]} 32.
Nf3 {[%clk 0:03:28.8]} 32... Bh6 {[%clk 0:01:32]} 33. Nxe5 {[%clk 0:03:25.4]}
33... Ne3+ {[%clk 0:01:15.9]} 34. Kh2 {[%clk 0:03:19.1]} 34... Qd1 {[%clk
0:00:51.6]} 35. Qxd1 {[%clk 0:03:11.7]} 35... Nxd1 {[%clk 0:00:50.2]} 36. Be2
{[%clk 0:03:10.8]} 36... Nb2 {[%clk 0:00:48]} 37. Bxh5 {[%clk 0:03:02]} 37...
Nxc4 {[%clk 0:00:34]} 38. Nxf7 {[%clk 0:03:00.6]} 38... Kg7 {[%clk 0:00:31]} 39.
Be5+ {[%clk 0:02:55.7]} 39... Nxe5 {[%clk 0:00:27.1]} 40. Nxe5 {[%clk
0:02:54.9]} 40... c4 {[%clk 0:00:25.4]} 41. Bd1 {[%clk 0:02:54.1]} 41... c3
{[%clk 0:00:19.8]} 42. Kg2 {[%clk 0:02:50.6]} 42... Bf4 {[%clk 0:00:17.6]} 43.
Nf3 {[%clk 0:02:40.8]} 43... Bd3 {[%clk 0:00:15.9]} 44. Nd4 {[%clk 0:02:40]}
44... Bxe4+ {[%clk 0:00:12.4]} 45. Bf3 {[%clk 0:02:38.9]} 45... Bxf3+ {[%clk
0:00:07.4]} 46. Kxf3 {[%clk 0:02:38.8]} 46... Bd2 {[%clk 0:00:05.5]} 47. Nc2
{[%clk 0:02:36.1]} 47... Kf6 {[%clk 0:00:03.9]} 48. Ke4 {[%clk 0:02:35.6]} 48...
Ke7 {[%clk 0:00:02]} 49. Kd4 {[%clk 0:02:34.9]} 49... Kd6 {[%clk 0:00:00.6]} 50.
Kc4 {[%clk 0:02:34.4]} 1-0

[Event "Live Chess"]
[Site "Chess.com"]
[Date "2023.05.20"]
[Round "-"]
[White "gregor1903"]
[Black "Leonid_Starozhilov"]
[Result "0-1"]
[WhiteElo "1563"]
[BlackElo "2653"]
[TimeControl "300"]
[EndTime "12:56:37 PDT"]
[Termination "Leonid_Starozhilov won by resignation"]

1. e4 {[%clk 0:04:56.5]} 1... c6 {[%clk 0:04:57.4]} 2. d4 {[%clk 0:04:55.1]}
2... d5 {[%clk 0:04:57.3]} 3. f3 {[%clk 0:04:53.5]} 3... dxe4 {[%clk 0:04:55.8]}
4. fxe4 {[%clk 0:04:53.4]} 4... e5 {[%clk 0:04:55.3]} 5. Nf3 {[%clk 0:04:52.5]}
5... Bg4 {[%clk 0:04:52.7]} 6. Bc4 {[%clk 0:04:51.3]} 6... Nf6 {[%clk
0:04:43.6]} 7. O-O {[%clk 0:04:48.1]} 7... Bxf3 {[%clk 0:04:40.5]} 8. Qxf3
{[%clk 0:04:45.9]} 8... Qxd4+ {[%clk 0:04:39.2]} 9. Kh1 {[%clk 0:04:30.1]} 9...
Qxc4 {[%clk 0:04:39.1]} 10. Nc3 {[%clk 0:04:25.6]} 10... Nbd7 {[%clk 0:04:36.8]}
11. Bg5 {[%clk 0:04:21.1]} 11... O-O-O {[%clk 0:04:33]} 12. Rad1 {[%clk
0:04:16.3]} 12... Bb4 {[%clk 0:04:30.2]} 13. a3 {[%clk 0:04:13.4]} 13... Bxc3
{[%clk 0:04:28.7]} 14. bxc3 {[%clk 0:04:12.6]} 14... h6 {[%clk 0:04:24.7]} 15.
Be3 {[%clk 0:04:08.7]} 15... Qxe4 {[%clk 0:04:21.8]} 16. Qxe4 {[%clk 0:04:03.7]}
16... Nxe4 {[%clk 0:04:18.3]} 17. Rxf7 {[%clk 0:04:00.5]} 17... Ndf6 {[%clk
0:04:15.6]} 18. Bxa7 {[%clk 0:03:57.2]} 18... Rxd1+ {[%clk 0:04:13.3]} 0-1

[Event "Live Chess"]
[Site "Chess.com"]
[Date "2023.05.20"]
[Round "-"]
[White "AttackingSnowLeopard"]
[Black "MartinWalker4"]
[Result "1-0"]
[WhiteElo "2053"]
[BlackElo "2009"]
[TimeControl "300"]
[EndTime "12:56:38 PDT"]
[Termination "AttackingSnowLeopard won by resignation"]

1. d4 {[%clk 0:04:58.7]} 1... Nf6 {[%clk 0:04:58.1]} 2. c4 {[%clk 0:04:57.5]}
2... g6 {[%clk 0:04:56.8]} 3. Nc3 {[%clk 0:04:55.9]} 3... d5 {[%clk 0:04:55.5]}
4. cxd5 {[%clk 0:04:54.7]} 4... Nxd5 {[%clk 0:04:54.3]} 5. e4 {[%clk 0:04:54.4]}
5... Nxc3 {[%clk 0:04:53.2]} 6. bxc3 {[%clk 0:04:54.3]} 6... Bg7 {[%clk
0:04:52]} 7. Be3 {[%clk 0:04:53.8]} 7... c5 {[%clk 0:04:50.5]} 8. Qd2 {[%clk
0:04:53.3]} 8... O-O {[%clk 0:04:46.6]} 9. Rc1 {[%clk 0:04:52.7]} 9... cxd4
{[%clk 0:04:35.2]} 10. cxd4 {[%clk 0:04:51.3]} 10... b6 {[%clk 0:04:34.2]} 11.
Nf3 {[%clk 0:04:44.7]} 11... Bb7 {[%clk 0:04:32.8]} 12. Bd3 {[%clk 0:04:44.2]}
12... Nc6 {[%clk 0:04:29.8]} 13. d5 {[%clk 0:04:42.5]} 13... Ne5 {[%clk
0:04:28.2]} 14. Nxe5 {[%clk 0:04:42.1]} 14... Bxe5 {[%clk 0:04:26.5]} 15. O-O
{[%clk 0:04:41.5]} 15... Rc8 {[%clk 0:04:21.7]} 16. Bh6 {[%clk 0:04:39.4]} 16...
Bg7 {[%clk 0:04:18.3]} 17. Bxg7 {[%clk 0:04:38]} 17... Kxg7 {[%clk 0:04:17.1]}
18. Qb2+ {[%clk 0:04:37.7]} 18... Kg8 {[%clk 0:04:15.4]} 19. Qd4 {[%clk
0:04:36]} 19... Qd6 {[%clk 0:04:13.3]} 20. Be2 {[%clk 0:04:30.4]} 20... e6
{[%clk 0:03:51.4]} 21. Qf6 {[%clk 0:04:20.3]} 21... Qd8 {[%clk 0:03:45.2]} 22.
Qxd8 {[%clk 0:04:08.4]} 22... Rfxd8 {[%clk 0:03:43.5]} 23. dxe6 {[%clk
0:04:07.8]} 23... fxe6 {[%clk 0:03:41.3]} 24. f3 {[%clk 0:03:59.9]} 24... Rd2
{[%clk 0:03:32.4]} 25. Bc4 {[%clk 0:03:55.7]} 25... Kf7 {[%clk 0:03:27.3]} 26.
Bb3 {[%clk 0:03:54.4]} 26... Ke7 {[%clk 0:02:58.3]} 27. Rxc8 {[%clk 0:03:49]}
27... Bxc8 {[%clk 0:02:56.6]} 28. Rc1 {[%clk 0:03:48.6]} 28... Kd8 {[%clk
0:02:54.6]} 29. e5 {[%clk 0:03:38.5]} 29... b5 {[%clk 0:02:44.1]} 30. Rc5 {[%clk
0:03:31.5]} 30... a6 {[%clk 0:02:35.3]} 31. Rc6 {[%clk 0:03:26.3]} 31... Re2
{[%clk 0:02:25.3]} 32. f4 {[%clk 0:03:18.9]} 32... Bb7 {[%clk 0:02:20.4]} 33.
Rxe6 {[%clk 0:03:15.2]} 33... Rxg2+ {[%clk 0:02:18.9]} 34. Kf1 {[%clk
0:03:14.7]} 34... Rxh2 {[%clk 0:02:17]} 35. Rf6 {[%clk 0:03:06.6]} 35... a5
{[%clk 0:02:08.7]} 36. Rf8+ {[%clk 0:03:01]} 36... Kc7 {[%clk 0:02:06.8]} 37.
Rf7+ {[%clk 0:02:59.9]} 37... Kb6 {[%clk 0:02:05]} 38. e6 {[%clk 0:02:58.7]}
38... a4 {[%clk 0:02:02.8]} 39. e7 {[%clk 0:02:53.1]} 39... Bc6 {[%clk
0:01:57.9]} 40. Bd5 {[%clk 0:02:50.2]} 40... Bd7 {[%clk 0:01:51]} 41. Rf8 {[%clk
0:02:35]} 41... Rd2 {[%clk 0:01:40.3]} 42. Be6 {[%clk 0:02:30.4]} 42... Bc6
{[%clk 0:01:35.2]} 43. Rd8 {[%clk 0:02:19.9]} 43... Rc2 {[%clk 0:01:10]} 44. Rd6
{[%clk 0:02:12.9]} 1-0

[Event "Live Chess"]
[Site "Chess.com"]
[Date "2023.05.20"]
[Round "-"]
[White "Brooms1989"]
[Black "fretle"]
[Result "0-1"]
[WhiteElo "1020"]
[BlackElo "1851"]
[TimeControl "300"]
[EndTime "12:56:43 PDT"]
[Termination "fretle won by checkmate"]

1. e4 {[%clk 0:04:51.4]} 1... h5 {[%clk 0:04:59]} 2. d4 {[%clk 0:04:48.8]} 2...
d6 {[%clk 0:04:57.8]} 3. Nc3 {[%clk 0:04:43.7]} 3... Nc6 {[%clk 0:04:56.7]} 4.
Nf3 {[%clk 0:04:40.3]} 4... Bg4 {[%clk 0:04:54.3]} 5. Be2 {[%clk 0:04:37.8]}
5... Nf6 {[%clk 0:04:51.2]} 6. O-O {[%clk 0:04:33.7]} 6... Qd7 {[%clk
0:04:43.9]} 7. a3 {[%clk 0:04:26.2]} 7... O-O-O {[%clk 0:04:36.1]} 8. d5 {[%clk
0:04:25.3]} 8... Ne5 {[%clk 0:04:31.6]} 9. Nxe5 {[%clk 0:04:21]} 9... dxe5
{[%clk 0:04:30.9]} 10. Bg5 {[%clk 0:04:12.9]} 10... Bxe2 {[%clk 0:04:24.9]} 11.
Qxe2 {[%clk 0:04:09.6]} 11... Ng4 {[%clk 0:04:23.7]} 12. h3 {[%clk 0:03:48]}
12... f6 {[%clk 0:04:21.5]} 13. Be3 {[%clk 0:03:40.1]} 13... Nxe3 {[%clk
0:04:20]} 14. Qxe3 {[%clk 0:03:36.5]} 14... g5 {[%clk 0:04:19.9]} 15. Qxa7
{[%clk 0:03:30.6]} 15... Qd6 {[%clk 0:04:18.9]} 16. Nb5 {[%clk 0:03:22.9]} 16...
Qa6 {[%clk 0:04:00.3]} 17. Qc5 {[%clk 0:03:00]} 17... c6 {[%clk 0:03:45.8]} 18.
dxc6 {[%clk 0:02:58.6]} 18... bxc6 {[%clk 0:03:45.2]} 19. Nc3 {[%clk 0:02:25]}
19... e6 {[%clk 0:03:38.2]} 20. Qe3 {[%clk 0:02:15.6]} 20... g4 {[%clk 0:03:36]}
21. Rad1 {[%clk 0:02:12.9]} 21... gxh3 {[%clk 0:03:25.6]} 22. Rxd8+ {[%clk
0:02:10.5]} 22... Kxd8 {[%clk 0:03:24.3]} 23. Rd1+ {[%clk 0:02:05.8]} 23... Kc7
{[%clk 0:03:21.2]} 24. g3 {[%clk 0:02:01.5]} 24... h4 {[%clk 0:03:09]} 25. Qd2
{[%clk 0:01:43]} 25... Bc5 {[%clk 0:02:22.9]} 26. Qd7+ {[%clk 0:01:30.4]} 26...
Kb6 {[%clk 0:02:21.9]} 27. b4 {[%clk 0:01:21.3]} 27... Bd4 {[%clk 0:02:18]} 28.
gxh4 {[%clk 0:01:08.4]} 28... Rg8+ {[%clk 0:02:04.7]} 29. Kh2 {[%clk 0:01:05.7]}
29... Bxc3 {[%clk 0:02:03.4]} 30. Rd6 {[%clk 0:01:03.3]} 30... Qc4 {[%clk
0:01:47.4]} 31. Rxe6 {[%clk 0:00:18.3]} 31... Bd2 {[%clk 0:01:32.5]} 32. Qd6
{[%clk 0:00:12.7]} 32... Bf4+ {[%clk 0:01:29.5]} 33. Kh1 {[%clk 0:00:10.7]}
33... Qf1# {[%clk 0:01:28.2]} 0-1

[Event "Live Chess"]
[Site "Chess.com"]
[Date "2023.05.20"]
[Round "-"]
[White "apl_trainer"]
[Black "Olisingapore"]
[Result "1-0"]
[WhiteElo "1709"]
[BlackElo "1884"]
[TimeControl "300"]
[EndTime "12:56:47 PDT"]
[Termination "apl_trainer won by resignation"]

1. d4 {[%clk 0:04:57.4]} 1... Nf6 {[%clk 0:04:59]} 2. c4 {[%clk 0:04:47.4]} 2...
e6 {[%clk 0:04:57.6]} 3. Nc3 {[%clk 0:04:45.9]} 3... Bb4 {[%clk 0:04:57.1]} 4.
a3 {[%clk 0:04:44.7]} 4... Bxc3+ {[%clk 0:04:55.8]} 5. bxc3 {[%clk 0:04:43.7]}
5... c5 {[%clk 0:04:53.3]} 6. e3 {[%clk 0:04:42.2]} 6... Nc6 {[%clk 0:04:52.1]}
7. Bd3 {[%clk 0:04:40.7]} 7... d6 {[%clk 0:04:45]} 8. Ne2 {[%clk 0:04:39.2]}
8... O-O {[%clk 0:04:44.1]} 9. e4 {[%clk 0:04:35]} 9... b6 {[%clk 0:04:40.1]}
10. O-O {[%clk 0:04:31.5]} 10... Ba6 {[%clk 0:04:39]} 11. f4 {[%clk 0:04:24.8]}
11... Na5 {[%clk 0:04:04]} 12. e5 {[%clk 0:04:23.2]} 12... Ng4 {[%clk
0:03:59.2]} 13. Ng3 {[%clk 0:04:11.9]} 13... Qh4 {[%clk 0:03:54.2]} 14. h3
{[%clk 0:03:53.2]} 14... Qxg3 {[%clk 0:03:52.4]} 15. hxg4 {[%clk 0:03:49.2]}
15... dxe5 {[%clk 0:03:51.9]} 16. fxe5 {[%clk 0:03:42.7]} 16... Bxc4 {[%clk
0:03:46.6]} 17. Bxc4 {[%clk 0:03:30.6]} 17... Nxc4 {[%clk 0:03:46.5]} 18. Bf4
{[%clk 0:03:23.9]} 18... Qxc3 {[%clk 0:03:29.3]} 19. Rc1 {[%clk 0:03:21]} 19...
Qxa3 {[%clk 0:02:59.7]} 20. Rxc4 {[%clk 0:03:19.5]} 20... Rad8 {[%clk
0:02:56.5]} 21. Bg5 {[%clk 0:03:08.4]} 21... Rxd4 {[%clk 0:02:51.2]} 22. Rxd4
{[%clk 0:03:05.3]} 22... cxd4 {[%clk 0:02:46.4]} 23. Qxd4 {[%clk 0:03:03.7]}
23... h6 {[%clk 0:02:36.1]} 24. Bc1 {[%clk 0:02:55.4]} 24... Qc5 {[%clk
0:02:28.9]} 25. Qxc5 {[%clk 0:02:47.8]} 25... bxc5 {[%clk 0:02:28.1]} 26. Be3
{[%clk 0:02:45.7]} 26... Rc8 {[%clk 0:02:26.8]} 27. Rc1 {[%clk 0:02:42.7]} 27...
c4 {[%clk 0:02:23.1]} 28. Bxa7 {[%clk 0:02:41.3]} 28... f6 {[%clk 0:02:17]} 29.
Bd4 {[%clk 0:02:34.5]} 29... Kf7 {[%clk 0:02:14.1]} 30. Rf1 {[%clk 0:02:30.5]}
30... c3 {[%clk 0:02:08.9]} 31. exf6 {[%clk 0:02:26.9]} 31... gxf6 {[%clk
0:02:06.6]} 32. Bxf6 {[%clk 0:02:24.7]} 32... Kg6 {[%clk 0:02:00.8]} 33. Bd4
{[%clk 0:02:15.1]} 33... c2 {[%clk 0:01:59.3]} 34. Be3 {[%clk 0:02:13.4]} 34...
Rc4 {[%clk 0:01:49.2]} 35. Rc1 {[%clk 0:02:11]} 35... h5 {[%clk 0:01:33.9]} 36.
gxh5+ {[%clk 0:02:08.2]} 36... Kxh5 {[%clk 0:01:33.3]} 37. Kf2 {[%clk
0:02:05.7]} 37... Kg4 {[%clk 0:01:27.8]} 38. Ke2 {[%clk 0:02:00]} 38... Kg3
{[%clk 0:01:24]} 39. Kd3 {[%clk 0:01:57.4]} 39... Rc6 {[%clk 0:01:18.5]} 40. Bd4
{[%clk 0:01:48.5]} 40... Kxg2 {[%clk 0:01:14.1]} 41. Bc3 {[%clk 0:01:47.2]}
41... e5 {[%clk 0:01:07.3]} 42. Rxc2+ {[%clk 0:01:45.2]} 42... Kf3 {[%clk
0:01:06.8]} 43. Rc1 {[%clk 0:01:38.1]} 43... e4+ {[%clk 0:01:05.4]} 44. Kd4
{[%clk 0:01:33.7]} 44... Rxc3 {[%clk 0:00:30.5]} 45. Rxc3+ {[%clk 0:01:29.7]}
45... e3 {[%clk 0:00:29.7]} 46. Rxe3+ {[%clk 0:01:28.5]} 46... Kf2 {[%clk
0:00:29.2]} 47. Re8 {[%clk 0:01:26.8]} 47... Kf3 {[%clk 0:00:28.7]} 1-0

[Event "Live Chess"]
[Site "Chess.com"]
[Date "2023.05.20"]
[Round "-"]
[White "PiotrD11"]
[Black "LL220284LL"]
[Result "0-1"]
[WhiteElo "1337"]
[BlackElo "2400"]
[TimeControl "300"]
[EndTime "12:56:47 PDT"]
[Termination "LL220284LL won by resignation"]

1. e4 {[%clk 0:04:59]} 1... Nf6 {[%clk 0:04:59.5]} 2. e5 {[%clk 0:04:54.6]} 2...
Nd5 {[%clk 0:04:58.2]} 3. d4 {[%clk 0:04:52.3]} 3... d6 {[%clk 0:04:57.6]} 4.
Nf3 {[%clk 0:04:50.4]} 4... Nc6 {[%clk 0:04:56]} 5. exd6 {[%clk 0:04:43.2]} 5...
exd6 {[%clk 0:04:54.7]} 6. Bb5 {[%clk 0:04:42]} 6... Bd7 {[%clk 0:04:53.1]} 7.
Bxc6 {[%clk 0:04:41.2]} 7... Bxc6 {[%clk 0:04:51.9]} 8. O-O {[%clk 0:04:40.5]}
8... Be7 {[%clk 0:04:51]} 9. c4 {[%clk 0:04:39.2]} 9... Nf6 {[%clk 0:04:50.2]}
10. Re1 {[%clk 0:04:38.3]} 10... O-O {[%clk 0:04:49.1]} 11. d5 {[%clk
0:04:37.6]} 11... Bd7 {[%clk 0:04:48.6]} 12. Nc3 {[%clk 0:04:33.6]} 12... Re8
{[%clk 0:04:47.2]} 13. Bg5 {[%clk 0:04:30]} 13... h6 {[%clk 0:04:45.9]} 14. Bh4
{[%clk 0:04:29]} 14... Bf5 {[%clk 0:04:44.3]} 15. b3 {[%clk 0:04:23.5]} 15...
Qd7 {[%clk 0:04:42.9]} 16. Rc1 {[%clk 0:04:22]} 16... a5 {[%clk 0:04:36.5]} 17.
Bxf6 {[%clk 0:04:20.3]} 17... Bxf6 {[%clk 0:04:34.5]} 18. Nd4 {[%clk 0:04:08.1]}
18... Bg6 {[%clk 0:04:27.3]} 19. Rxe8+ {[%clk 0:04:05.1]} 19... Rxe8 {[%clk
0:04:25.6]} 20. Nf3 {[%clk 0:03:57.3]} 20... Qg4 {[%clk 0:04:23.1]} 21. h3
{[%clk 0:03:40.9]} 21... Qf4 {[%clk 0:04:20.1]} 22. Ne2 {[%clk 0:03:37.7]} 22...
Rxe2 {[%clk 0:04:15.3]} 23. Qxe2 {[%clk 0:03:36.1]} 23... Qxc1+ {[%clk
0:04:14.2]} 24. Kh2 {[%clk 0:03:32.1]} 24... Qf4+ {[%clk 0:04:13.8]} 25. Kg1
{[%clk 0:03:29.2]} 25... Be4 {[%clk 0:04:12.7]} 26. Kf1 {[%clk 0:03:12.4]} 26...
Qc1+ {[%clk 0:04:05.8]} 27. Ne1 {[%clk 0:03:09.4]} 27... Bg6 {[%clk 0:04:00.3]}
28. Qe8+ {[%clk 0:03:07.6]} 28... Kh7 {[%clk 0:03:59.4]} 29. Qe3 {[%clk
0:02:58.7]} 29... Bc3 {[%clk 0:03:58.3]} 30. h4 {[%clk 0:02:51.1]} 30... Bxe1
{[%clk 0:03:57.1]} 31. Qxe1 {[%clk 0:02:50.3]} 31... Bd3+ {[%clk 0:03:56.1]} 32.
Kg1 {[%clk 0:02:47.3]} 32... Qxe1+ {[%clk 0:03:55.7]} 0-1

[Event "Live Chess"]
[Site "Chess.com"]
[Date "2023.05.20"]
[Round "-"]
[White "Ian-Morley"]
[Black "BillythekidFellowes"]
[Result "0-1"]
[WhiteElo "976"]
[BlackElo "2030"]
[TimeControl "300"]
[EndTime "12:56:53 PDT"]
[Termination "BillythekidFellowes won by resignation"]

1. e4 {[%clk 0:04:56.4]} 1... e5 {[%clk 0:04:59.9]} 2. Nf3 {[%clk 0:04:53.3]}
2... Nc6 {[%clk 0:04:55.5]} 3. Bc4 {[%clk 0:04:52.5]} 3... Nf6 {[%clk
0:04:51.3]} 4. Ng5 {[%clk 0:04:51.4]} 4... d5 {[%clk 0:04:48.5]} 5. exd5 {[%clk
0:04:50.3]} 5... Na5 {[%clk 0:04:48.1]} 6. Bb5+ {[%clk 0:04:48.9]} 6... c6
{[%clk 0:04:45.4]} 7. dxc6 {[%clk 0:04:48]} 7... bxc6 {[%clk 0:04:45.3]} 8. Qf3
{[%clk 0:04:41.8]} 8... Qb6 {[%clk 0:04:34.5]} 9. a4 {[%clk 0:04:22.5]} 9... Bb7
{[%clk 0:04:24.2]} 10. Bd3 {[%clk 0:04:10]} 10... Be7 {[%clk 0:04:12.8]} 11. Ne4
{[%clk 0:04:06.9]} 11... c5 {[%clk 0:04:09.9]} 12. Nxf6+ {[%clk 0:04:04.2]}
12... Bxf6 {[%clk 0:04:09.8]} 13. Be4 {[%clk 0:04:01.9]} 13... O-O {[%clk
0:04:06.7]} 14. Bxb7 {[%clk 0:03:59.4]} 14... Nxb7 {[%clk 0:04:04.9]} 15. d3
{[%clk 0:03:58.9]} 15... e4 {[%clk 0:04:00.6]} 16. dxe4 {[%clk 0:03:51.9]} 16...
Bxb2 {[%clk 0:03:59.7]} 17. Ra2 {[%clk 0:03:42.1]} 17... Bxc1 {[%clk 0:03:53.2]}
18. O-O {[%clk 0:03:39.2]} 18... Qxb1 {[%clk 0:03:36.7]} 19. Qb3 {[%clk
0:02:40.5]} 19... Qxb3 {[%clk 0:02:45]} 20. cxb3 {[%clk 0:02:37.4]} 20... Bh6
{[%clk 0:02:44.9]} 21. Rb2 {[%clk 0:02:34.9]} 21... Nd6 {[%clk 0:02:42.8]} 22.
b4 {[%clk 0:02:33.8]} 22... Rab8 {[%clk 0:02:38.3]} 23. b5 {[%clk 0:02:31.7]}
23... Nxe4 {[%clk 0:02:36.5]} 24. Rc1 {[%clk 0:02:29.4]} 24... Bxc1 {[%clk
0:02:30.1]} 0-1

[Event "Live Chess"]
[Site "Chess.com"]
[Date "2023.05.20"]
[Round "-"]
[White "friarnator"]
[Black "xx_blindpuffin_xx"]
[Result "0-1"]
[WhiteElo "1992"]
[BlackElo "2219"]
[TimeControl "300"]
[EndTime "12:57:09 PDT"]
[Termination "xx_blindpuffin_xx won by resignation"]

1. e4 {[%clk 0:04:57.2]} 1... c6 {[%clk 0:04:56.6]} 2. Nc3 {[%clk 0:04:55.3]}
2... d5 {[%clk 0:04:55.4]} 3. d4 {[%clk 0:04:54.5]} 3... dxe4 {[%clk 0:04:54.2]}
4. Nxe4 {[%clk 0:04:54.4]} 4... Bf5 {[%clk 0:04:53.5]} 5. Ng3 {[%clk 0:04:53.1]}
5... Bg6 {[%clk 0:04:52.9]} 6. h4 {[%clk 0:04:53]} 6... h6 {[%clk 0:04:52.1]} 7.
Nf3 {[%clk 0:04:52.5]} 7... Nd7 {[%clk 0:04:50.2]} 8. h5 {[%clk 0:04:51.8]} 8...
Bh7 {[%clk 0:04:49.4]} 9. Bd3 {[%clk 0:04:51]} 9... Bxd3 {[%clk 0:04:48.7]} 10.
Qxd3 {[%clk 0:04:50.9]} 10... e6 {[%clk 0:04:48.3]} 11. Bd2 {[%clk 0:04:50.3]}
11... Ngf6 {[%clk 0:04:47.8]} 12. O-O-O {[%clk 0:04:49.4]} 12... Be7 {[%clk
0:04:47]} 13. Kb1 {[%clk 0:04:48.9]} 13... Qb6 {[%clk 0:04:45.9]} 14. Ne4 {[%clk
0:04:45.4]} 14... Nxe4 {[%clk 0:04:28.5]} 15. Qxe4 {[%clk 0:04:45.3]} 15... Nf6
{[%clk 0:04:27.8]} 16. Qe2 {[%clk 0:04:44.1]} 16... Qb5 {[%clk 0:04:24.8]} 17.
c4 {[%clk 0:04:40.5]} 17... Qf5+ {[%clk 0:04:23.5]} 18. Ka1 {[%clk 0:04:36.3]}
18... Qe4 {[%clk 0:04:22.5]} 19. Qxe4 {[%clk 0:04:30.5]} 19... Nxe4 {[%clk
0:04:22.4]} 20. Be3 {[%clk 0:04:29.3]} 20... f5 {[%clk 0:04:21.5]} 21. g3 {[%clk
0:04:09.6]} 21... Bf6 {[%clk 0:04:16.8]} 22. Ne5 {[%clk 0:04:04.6]} 22... O-O
{[%clk 0:04:01.8]} 23. Nd7 {[%clk 0:03:53.1]} 23... Rfd8 {[%clk 0:03:58.4]} 24.
Nxf6+ {[%clk 0:03:50]} 24... Nxf6 {[%clk 0:03:58.3]} 25. Kb1 {[%clk 0:03:49]}
25... Kf7 {[%clk 0:03:54.3]} 26. Kc2 {[%clk 0:03:47.8]} 26... Rd7 {[%clk
0:03:53.5]} 27. Rd3 {[%clk 0:03:44.6]} 27... Rad8 {[%clk 0:03:49.5]} 28. f3
{[%clk 0:03:42.9]} 28... e5 {[%clk 0:03:42]} 29. Kc3 {[%clk 0:03:26.8]} 29... c5
{[%clk 0:03:32.2]} 30. d5 {[%clk 0:03:23.7]} 30... e4 {[%clk 0:03:31.6]} 31.
fxe4 {[%clk 0:03:17.8]} 31... Nxe4+ {[%clk 0:03:29.1]} 32. Kc2 {[%clk
0:03:17.2]} 32... Nxg3 {[%clk 0:03:27.4]} 33. Rh3 {[%clk 0:03:12.3]} 33... Ne4
{[%clk 0:03:25.1]} 34. Rf3 {[%clk 0:03:08.9]} 34... Kf6 {[%clk 0:03:21]} 35. b3
{[%clk 0:03:00.1]} 35... b6 {[%clk 0:03:18.9]} 36. Bc1 {[%clk 0:02:58.4]} 36...
Rf7 {[%clk 0:03:04.3]} 37. Rde3 {[%clk 0:02:49]} 37... Re8 {[%clk 0:02:36.1]}
38. Bb2+ {[%clk 0:02:44.8]} 38... Ke7 {[%clk 0:02:35.1]} 39. Bxg7 {[%clk
0:01:46.7]} 39... Rxg7 {[%clk 0:02:33.1]} 40. Rxf5 {[%clk 0:01:45.8]} 40... Kd7
{[%clk 0:02:31.2]} 41. Rf4 {[%clk 0:01:21.1]} 41... Rg2+ {[%clk 0:02:28.4]} 42.
Kb1 {[%clk 0:01:14.7]} 42... Nd2+ {[%clk 0:02:23.1]} 0-1

[Event "Live Chess"]
[Site "Chess.com"]
[Date "2023.05.20"]
[Round "-"]
[White "Chesscoach_Golichenko"]
[Black "Mugzwang"]
[Result "0-1"]
[WhiteElo "2618"]
[BlackElo "1301"]
[TimeControl "300"]
[EndTime "12:57:18 PDT"]
[Termination "Mugzwang won by resignation"]

1. d4 {[%clk 0:04:57.4]} 1... d5 {[%clk 0:04:57.2]} 2. Nc3 {[%clk 0:04:54.6]}
2... Nf6 {[%clk 0:04:53.6]} 3. Bf4 {[%clk 0:04:51.4]} 3... c5 {[%clk 0:04:47.3]}
4. e3 {[%clk 0:04:42.8]} 4... cxd4 {[%clk 0:04:36.4]} 5. exd4 {[%clk 0:04:41]}
5... e6 {[%clk 0:04:28.5]} 6. Nf3 {[%clk 0:04:36.8]} 6... Bd6 {[%clk 0:04:18.5]}
7. Qd2 {[%clk 0:04:32.9]} 7... O-O {[%clk 0:04:06.1]} 8. Bd3 {[%clk 0:04:25.1]}
8... Nc6 {[%clk 0:03:51.5]} 9. O-O-O {[%clk 0:04:14]} 9... Bxf4 {[%clk
0:03:36.1]} 10. Qxf4 {[%clk 0:04:11.4]} 10... Nb4 {[%clk 0:03:35.3]} 11. g4
{[%clk 0:04:06.9]} 11... Qa5 {[%clk 0:03:13]} 12. Kb1 {[%clk 0:04:01.3]} 12...
Nxd3 {[%clk 0:03:02.4]} 13. Rxd3 {[%clk 0:03:59.6]} 13... b5 {[%clk 0:03:00.1]}
14. g5 {[%clk 0:03:57.3]} 14... Ne4 {[%clk 0:02:54.9]} 15. Nxe4 {[%clk
0:03:45.1]} 15... dxe4 {[%clk 0:02:53.1]} 16. Qxe4 {[%clk 0:03:45]} 16... Rb8
{[%clk 0:02:41.1]} 17. Rhd1 {[%clk 0:03:35.7]} 17... Bb7 {[%clk 0:02:39.1]} 18.
Qe5 {[%clk 0:03:26.2]} 18... Bd5 {[%clk 0:02:36.1]} 19. Ra3 {[%clk 0:03:01.4]}
19... Qb6 {[%clk 0:02:25.4]} 20. h4 {[%clk 0:02:50.9]} 20... b4 {[%clk
0:02:14.3]} 21. Re3 {[%clk 0:02:43.9]} 21... a5 {[%clk 0:02:11.2]} 22. h5 {[%clk
0:02:40.8]} 22... a4 {[%clk 0:02:03.4]} 23. h6 {[%clk 0:02:27.8]} 23... f6
{[%clk 0:01:51.7]} 24. gxf6 {[%clk 0:02:26.5]} 24... b3 {[%clk 0:01:37.7]} 25.
cxb3 {[%clk 0:02:13.9]} 25... axb3 {[%clk 0:01:33.3]} 26. a3 {[%clk 0:02:11.1]}
26... Qc6 {[%clk 0:01:13.2]} 27. hxg7 {[%clk 0:01:52.1]} 27... Qc2+ {[%clk
0:01:08.2]} 0-1